Department Family,Entity,Date,Expenses Type,Expense Area,Supplier,Transaction Number, Total ,
Department of Health,The Christie NHS Foundation Trust,13/09/2018,Drugs,Drugs,ALCURA UK LIMITED,0000593455,"76,411.93",
Department of Health,The Christie NHS Foundation Trust,06/09/2018,PET Scans -Jun 18,Christie Medical Physics,ALLIANCE MEDICAL LTD,0000588306,"164,045.00",
Department of Health,The Christie NHS Foundation Trust,13/09/2018,PET Scans-May 18,Christie Medical Physics,ALLIANCE MEDICAL LTD,0000586167,"55,170.00",
Department of Health,The Christie NHS Foundation Trust,13/09/2018,PET Scans -Jun 18,Christie Medical Physics,ALLIANCE MEDICAL LTD,0000591744,"39,990.00",
Department of Health,The Christie NHS Foundation Trust,13/09/2018,PET Scans- Jul 18,Christie Medical Physics,ALLIANCE MEDICAL LTD,0000591831,"30,960.00",
Department of Health,The Christie NHS Foundation Trust,06/09/2018,Drugs,Christie Medical Physics,ALLIANCE MEDICAL RADIOPHARMACY LIMITED,0000590907,"37,196.28",
Department of Health,The Christie NHS Foundation Trust,20/09/2018,Drugs,Drugs,BAXTER HEALTHCARE LTD,0000592846,"610,625.06",
Department of Health,The Christie NHS Foundation Trust,27/09/2018,Drugs,Drugs,BAXTER HEALTHCARE LTD,0000593100,"433,590.67",
Department of Health,The Christie NHS Foundation Trust,20/09/2018,Drugs,Drugs,BAXTER HEALTHCARE LTD,0000593102,"275,622.40",
Department of Health,The Christie NHS Foundation Trust,27/09/2018,Drugs,Drugs,BAXTER HEALTHCARE LTD,0000591873,"530,344.30",
Department of Health,The Christie NHS Foundation Trust,20/09/2018,Drugs,Drugs,BAXTER HEALTHCARE LTD,0000593108,"69,066.00",
Department of Health,The Christie NHS Foundation Trust,06/09/2018,Drugs,Drugs,BAXTER HEALTHCARE LTD,0000591251,"509,870.70",
Department of Health,The Christie NHS Foundation Trust,03/09/2018,Drugs,Drugs,BAXTER HEALTHCARE LTD,0000592997,"336,207.60",
Department of Health,The Christie NHS Foundation Trust,27/09/2018,Medical Equipment,Capital,BECTON DICKINSON U K LTD,0000592629,"28,704.00",
Department of Health,The Christie NHS Foundation Trust,13/09/2018,Medical Equipment Maintenance Contract,Clinical Support & Specialist Surgery,CPP FACILITIES LLP,0000591907,"203,002.52",
Department of Health,The Christie NHS Foundation Trust,13/09/2018,Building Project Survey,Estates & Facilities,CUBIC SURVEYING SOLUTIONS LTD,0000592647,"41,000.00",
Department of Health,The Christie NHS Foundation Trust,13/09/2018,Energy Contract PBT1 Aug 18,Network Services,EDF ENERGY,0000593080,"37,743.47",
Department of Health,The Christie NHS Foundation Trust,13/09/2018,Energy Contract PBT1 Aug 18,Network Services,EDF ENERGY,0000593078,"40,218.66",
Department of Health,The Christie NHS Foundation Trust,06/09/2018,Energy Contract PBT1 Jul 18,Network Services,EDF ENERGY,0000592327,"34,550.89",
Department of Health,The Christie NHS Foundation Trust,27/09/2018,Software Development,Capital,EGRESS GROUP LTD,0000592554,"30,000.00",
Department of Health,The Christie NHS Foundation Trust,13/09/2018,Childcare Voucher- Jul 18,Human Resources,FIDELITI LIMITED,0000588820,"33,721.55",
Department of Health,The Christie NHS Foundation Trust,06/09/2018,Childcare Voucher- Aug 18,Human Resources,FIDELITI LIMITED,0000591950,"33,429.77",
Department of Health,The Christie NHS Foundation Trust,20/09/2018,Drugs,Drugs,HEALTHCARE AT HOME LTD,0000592847,"25,448.00",
Department of Health,The Christie NHS Foundation Trust,06/09/2018,Service Contract,Clinical Support & Specialist Surgery,INTUITIVE SURGICAL LTD,0000588621,"130,000.00",
Department of Health,The Christie NHS Foundation Trust,06/09/2018,Service Contract,Clinical Support & Specialist Surgery,INTUITIVE SURGICAL LTD,0000588623,"130,000.00",
Department of Health,The Christie NHS Foundation Trust,07/09/2018,Rates 18/19,Estates & Facilities,M/CR CITY COUNCIL (RATES) DD,0000593262,"75,313.00",
Department of Health,The Christie NHS Foundation Trust,27/09/2018,PET Scans Jul 18,Christie Medical Physics,MANCHESTER UNIVERSITY NHS FT,0000592834,"95,750.00",
Department of Health,The Christie NHS Foundation Trust,27/09/2018,PET Scans Aug 18,Christie Medical Physics,MANCHESTER UNIVERSITY NHS FT,0000594209,"31,990.00",
Department of Health,The Christie NHS Foundation Trust,27/09/2018,Education HUB & Spoke,Other Income Levies and Grants,MANCHESTER UNIVERSITY NHS FT,0000515869,"33,484.00",
Department of Health,The Christie NHS Foundation Trust,06/09/2018,Anaesthetics Aug 18,Clinical Support & Specialist Surgery,MANCHESTER UNIVERSITY NHS FT,0000592002,"27,148.17",
Department of Health,The Christie NHS Foundation Trust,27/09/2018,Medical Research Grant,Research & Development,MEDICAL RESEARCH COUNCIL,0000588703,"261,870.23",
Department of Health,The Christie NHS Foundation Trust,27/09/2018,Macmillan Service Sep 18,Network Services,MID CHESHIRE HOSPITALS NHS FT,0000593467,"45,375.83",
Department of Health,The Christie NHS Foundation Trust,20/09/2018,Drugs,Drugs,MID CHESHIRE HOSPITALS NHS FT,0000591158,"86,996.30",
Department of Health,The Christie NHS Foundation Trust,06/09/2018,Macmillan Service Aug 18,Network Services,MID CHESHIRE HOSPITALS NHS FT,0000591558,"45,375.83",
Department of Health,The Christie NHS Foundation Trust,14/09/2018,Blood Products,Network Services,NHS BLOOD AND TRANSPLANT,0000593918,"182,293.80",
Department of Health,The Christie NHS Foundation Trust,27/09/2018,Blood Products,Network Services,NHS BLOOD AND TRANSPLANT,0000583921,"32,119.71",
Department of Health,The Christie NHS Foundation Trust,27/09/2018,Blood Products,Network Services,NHS BLOOD AND TRANSPLANT,0000591185,"39,947.57",
Department of Health,The Christie NHS Foundation Trust,17/09/2018,NHS Litigation (NHSLA),Finance & Business Development,NHS LITIGATION AUTHORITY,0000593920,"93,092.10",
Department of Health,The Christie NHS Foundation Trust,13/09/2018,Stock for all Wards & Departments,All Wards and Departments,NHS SUPPLY CHAIN,0000591672,"50,378.44",
Department of Health,The Christie NHS Foundation Trust,13/09/2018,Medical Equipment,Christie Medical Physics,NHS SUPPLY CHAIN,0000591645,"21,332.12",
Department of Health,The Christie NHS Foundation Trust,27/09/2018,Stock for all Wards & Departments,All Wards and Departments,NHS SUPPLY CHAIN,0000592796,"29,844.39",
Department of Health,The Christie NHS Foundation Trust,20/09/2018,Stock for all Wards & Departments,All Wards and Departments,NHS SUPPLY CHAIN,0000592176,"53,156.55",
Department of Health,The Christie NHS Foundation Trust,06/09/2018,Stock for all Wards & Departments,All Wards and Departments,NHS SUPPLY CHAIN,0000590980,"39,625.14",
Department of Health,The Christie NHS Foundation Trust,06/09/2018,Medical Software,Capital,PHILIPS HEALTHCARE,0000591476,"149,913.60",
Department of Health,The Christie NHS Foundation Trust,13/09/2018,Maintenance Mar 18 to Mar 19,Network Services,PHILIPS HEALTHCARE,0000583638,"86,060.30",
Department of Health,The Christie NHS Foundation Trust,06/09/2018,Medical Hardware,Capital,PHILIPS HEALTHCARE,0000592274,"110,264.40",
Department of Health,The Christie NHS Foundation Trust,20/09/2018,Consultancy- GM Health & Social Care Partnership,Programme Management Office,PURE dB LTD,0000593180,"21,000.00",
Department of Health,The Christie NHS Foundation Trust,20/09/2018,Audit Services,Finance & Business Development,ROYAL LIVERPOOL & BROADGREEN NHS TRUST,0000592872,"25,662.00",
Department of Health,The Christie NHS Foundation Trust,28/09/2018,E-Prescribing Project,Capital,SCC PLC,0000594279,"22,668.50",
Department of Health,The Christie NHS Foundation Trust,20/09/2018,Chemotherapy SLA May 18,Network Services,STOCKPORT NHS FOUNDATION TRUST,0000584230,"27,218.92",
Department of Health,The Christie NHS Foundation Trust,20/09/2018,Chemotherapy SLA Apr 18,Network Services,STOCKPORT NHS FOUNDATION TRUST,0000584231,"27,218.92",
Department of Health,The Christie NHS Foundation Trust,20/09/2018,Chemotherapy SLA Jul 18,Network Services,STOCKPORT NHS FOUNDATION TRUST,0000589029,"27,218.92",
Department of Health,The Christie NHS Foundation Trust,20/09/2018,Chemotherapy SLA Jun 18,Network Services,STOCKPORT NHS FOUNDATION TRUST,0000589874,"27,218.92",
Department of Health,The Christie NHS Foundation Trust,20/09/2018,Chemotherapy SLA Aug 18,Network Services,STOCKPORT NHS FOUNDATION TRUST,0000592877,"27,218.92",
Department of Health,The Christie NHS Foundation Trust,27/09/2018,Medway System Support- Aug 18,Finance & Business Development,SYSTEM C HEALTHCARE,0000593073,"24,485.11",
Department of Health,The Christie NHS Foundation Trust,13/09/2018,Medway System Support- Jul 18,Finance & Business Development,SYSTEM C HEALTHCARE,0000592031,"24,485.11",
Department of Health,The Christie NHS Foundation Trust,27/09/2018,Blood Products,Network Services,THE ANTHONY NOLAN BONE MARROW,0000590769,"35,164.43",
Department of Health,The Christie NHS Foundation Trust,06/09/2018,Patient Testing Service ,Clinical Support & Specialist Surgery,THE CHRISTIE PATHOLOGY PARTNERSHIP LLP,0000589523,"424,132.07",
Department of Health,The Christie NHS Foundation Trust,06/09/2018,Patient Testing Service ,Clinical Support & Specialist Surgery,THE CHRISTIE PATHOLOGY PARTNERSHIP LLP,0000589527,"409,217.20",
Department of Health,The Christie NHS Foundation Trust,13/09/2018,Patient Testing Service ,Clinical Support & Specialist Surgery,THE CHRISTIE PATHOLOGY PARTNERSHIP LLP,0000591968,"427,160.93",
Department of Health,The Christie NHS Foundation Trust,20/09/2018,Software Licences,Clinical Support & Specialist Surgery,TRISOFT LTD,0000593784,"27,893.52",
Department of Health,The Christie NHS Foundation Trust,27/09/2018,Proton Beam Development (PBT),Capital,VARIAN MEDICAL SYSTEMS UK LTD,0000588959,"155,207.00",
Department of Health,The Christie NHS Foundation Trust,27/09/2018,Energy Contract - Jul 18,Estates & Facilities,VEOLIA ENERGY &UTILITY SERVICES UK PLC,0000592487,"212,118.65",
Department of Health,The Christie NHS Foundation Trust,20/09/2018,Energy Contract - Aug 18,Estates & Facilities,VEOLIA ENERGY &UTILITY SERVICES UK PLC,0000589074,"154,203.62",
Department of Health,The Christie NHS Foundation Trust,20/09/2018,Christie @ Wigan Oct 18 to Sep 19,Christie Medical Physics,WRIGHTINGTON WIGAN AND LEIGH NHS FT,0000591955,"93,000.00",
Department of Health,The Christie NHS Foundation Trust,28/09/2018,Christie @ Wigan Sep 18,Network Services,WRIGHTINGTON WIGAN AND LEIGH NHS FT,0000594202,"231,448.00",
